bitfinex/quotes_SOLUSD_20250316
["timestamp","ask_amount","ask_price","bid_price","bid_amount"]
[1742117331882,31.5752709,134.35,134.3,7.4759]
[1742117334373,22.9101953,134.35,134.3,7.4759]
[1742117334572,15.4036953,134.34,134.3,0.03]
[1742117335471,15.4036953,134.32,134.3,0.03]
[1742117335863,15.4036953,134.31,134.3,0.03]
[1742117336562,22.8490953,134.31,134.3,0.03]
[1742117338070,7.4454,134.31,134.3,0.03]
[1742117338272,31.52399175,134.32,134.3,0.03]
[1742117338981,106.34189175,134.35,134.3,24.10889175]
[1742117339783,113.78549175,134.35,134.3,31.55469175]
[1742117341576,24.07889175,134.34,134.3,0.03]
[1742117341776,113.78549175,134.35,134.3,24.10889175]
[1742117341978,24.07889175,134.34,134.3,0.03]
[1742117342173,24.07889175,134.33,134.3,0.03]
[1742117342585,24.07889175,134.34,134.3,0.03]
[1742117343175,24.07889175,134.33,134.3,0.03]
[1742117343577,7.4449,134.32,134.3,0.03]
[1742117344588,31.52379175,134.32,134.3,0.03]
[1742117346275,58.13826375,134.31,134.3,0.03]
[1742117349270,31.75889175,134.31,134.3,0.03]
[1742117349469,24.07889175,134.32,134.3,0.03]
[1742117349687,20.0,134.31,134.3,0.03]
[1742117350793,24.07889175,134.32,134.3,0.03]
[1742117351589,20.0,134.31,134.3,0.03]
[1742117354894,70.45826375,134.31,134.3,0.03]
[1742117364316,61.79779359,134.31,134.3,0.03]
[1742117366687,20.0,134.31,134.3,0.03]
[1742117368695,15.41842159,134.32,134.3,0.03]
[1742117368917,105.06272159,134.33,134.3,0.03]
[1742117369110,20.0,134.31,134.3,0.03]
[1742117369290,105.06272159,134.33,134.3,0.03]
[1742117369610,20.063,134.31,134.3,0.03]
[1742117372009,0.063,134.31,134.3,0.03]
[1742117372315,20.063,134.31,134.3,0.03]
[1742117372488,0.063,134.31,134.3,0.03]
[1742117382826,0.063,134.31,134.3,7.476]
[1742117386733,0.063,134.31,134.3,15.44842159]
[1742117388135,0.063,134.31,134.3,22.89442159]
[1742117404616,0.063,134.35,134.3,41.50942159]
[1742117404818,0.063,134.35,134.34,15.41842159]
[1742117405833,0.063,134.35,134.34,22.86212159]
[1742117406738,0.063,134.35,134.32,22.86302159]
[1742117406946,0.063,134.35,134.32,7.4446]
[1742117407245,0.063,134.35,134.31,22.86362159]
[1742117407950,35.48142159,134.35,134.3,22.89422159]
[1742117408116,15.41842159,134.34,134.3,0.03]
[1742117408320,15.48142159,134.35,134.3,15.44842159]
[1742117408619,0.063,134.35,134.31,15.41842159]
[1742117409121,15.48142159,134.35,134.3,15.44842159]
[1742117409323,7.5062,134.35,134.31,15.41842159]
[1742117409846,7.5062,134.35,134.3,15.44842159]
[1742117409847,22.92462159,134.35,134.3,15.44842159]
[1742117410144,0.063,134.35,134.32,15.41842159]
[1742117411120,0.063,134.35,134.34,15.41842159]
[1742117411324,0.063,134.35,134.33,15.41842159]
[1742117411925,0.063,134.35,134.33,22.86272159]
[1742117413554,0.063,134.35,134.34,15.41842159]
[1742117415647,0.063,134.35,134.34,84.53580795]
[1742117415836,0.063,134.35,134.34,86.16320795]
[1742117417746,20.0,134.4,134.34,104.77260795]
[1742117418048,20.0,134.4,134.39,15.41842159]
[1742117418546,0.063,134.42,134.39,15.41842159]
[1742117418750,0.063,134.42,134.39,22.85922159]
[1742117422044,0.063,134.42,134.41,15.41842159]
[1742117422354,0.063,134.42,134.4,15.41842159]
[1742117423336,0.063,134.42,134.39,15.41842159]
[1742117423649,0.063,134.42,134.37,7.4421]
[1742117423650,0.063,134.42,134.4,15.41842159]
[1742117424242,0.063,134.42,134.41,15.41842159]
[1742117424637,0.063,134.42,134.4,15.41842159]
[1742117425254,0.063,134.42,134.38,22.85942159]
[1742117425844,20.0,134.41,134.39,15.41842159]
[1742117427452,20.0,134.41,134.39,22.85902159]
[1742117428459,20.0,134.41,134.4,15.41842159]
[1742117428961,20.0,134.41,134.39,22.85902159]
[1742117429864,20.063,134.41,134.39,22.85902159]
[1742117431153,20.063,134.41,134.4,15.41842159]
[1742117431848,20.063,134.41,134.39,22.85902159]
[1742117434250,20.063,134.41,134.4,15.41842159]
[1742117434562,0.063,134.41,134.4,15.41842159]
[1742117436253,0.063,134.41,134.4,22.85882159]
[1742117439641,0.063,134.41,134.4,84.53250795]
[1742117440254,0.063,134.41,134.4,22.85882159]
[1742117443156,0.063,134.41,134.4,84.53250795]
[1742117443862,0.063,134.42,134.4,91.65466952]
[1742117444065,0.063,134.42,134.41,15.41842159]
[1742117444263,0.063,134.44,134.43,15.41842159]
[1742117445148,0.063,134.44,134.43,22.85722159]
[1742117445565,0.063,134.44,134.43,105.48074473]
[1742117445753,0.063,134.49,134.44,0.78432314]
[1742117445947,0.063,134.49,134.48,15.41842159]
[1742117446657,0.063,134.51,134.48,15.41842159]
[1742117446858,0.063,134.51,134.5,15.41842159]
[1742117447367,0.063,134.51,134.5,22.85332159]
[1742117451569,0.063,134.51,134.5,93.08620795]
[1742117451874,0.063,134.51,134.5,31.41252159]
[1742117452260,0.063,134.51,134.5,93.08620795]
[1742117452769,0.063,134.51,134.5,29.77332159]
[1742117456672,0.063,134.51,134.5,15.41842159]
[1742117456880,0.063,134.51,134.49,15.41842159]
[1742117457061,0.063,134.51,134.48,15.41842159]
[1742117457580,0.063,134.51,134.49,15.41842159]
[1742117459881,15.48142159,134.51,134.47,0.03]
[1742117460265,18.64964886,134.5,134.47,0.03]
[1742117460473,22.85332159,134.5,134.47,0.03]
[1742117462185,41.56557045,134.51,134.47,0.03]
[1742117463271,15.41842159,134.5,134.47,0.03]
[1742117463689,41.56557045,134.51,134.47,0.03]
[1742117468591,34.13107045,134.51,134.47,0.03]
[1742117468778,20.063,134.51,134.49,15.41842159]
[1742117468969,0.063,134.51,134.49,15.41842159]
[1742117469172,0.063,134.51,134.48,15.41842159]
[1742117469583,0.063,134.51,134.47,1.5781]
[1742117469888,0.063,134.51,134.47,83.0781]
[1742117470195,15.41842159,134.5,134.47,81.53]
[1742117470563,20.063,134.51,134.48,7.436]
[1742117470791,15.48142159,134.51,134.48,7.436]
[1742117471789,35.48142159,134.51,134.47,88.9663]
[1742117472806,34.06807045,134.5,134.47,0.03]
[1742117473179,15.41842159,134.49,134.47,0.03]
[1742117474895,41.50317045,134.5,134.47,0.03]
[1742117475280,18.64964886,134.5,134.47,0.03]
[1742117477089,18.64964886,134.5,134.47,7.4666]
[1742117479205,20.063,134.51,134.48,15.41842159]
[1742117479409,0.063,134.51,134.48,15.41842159]
[1742117480308,0.063,134.51,134.49,7.4354]
[1742117481705,0.063,134.51,134.5,15.41842159]
[1742117481906,0.063,134.51,134.49,22.85382159]
[1742117483908,0.063,134.51,134.5,15.41842159]
[1742117484804,0.063,134.56,134.5,15.41842159]
[1742117485010,0.063,134.56,134.54,7.4327]
[1742117486406,0.063,134.56,134.54,22.85112159]
[1742117487092,0.063,134.56,134.55,15.41842159]
[1742117487312,0.063,134.56,134.54,22.85112159]
[1742117487509,0.063,134.56,134.54,7.4327]
[1742117487821,15.48142159,134.56,134.52,7.4336]
[1742117488023,20.0,134.54,134.52,7.4336]
[1742117488220,15.41842159,134.55,134.51,7.4341]
[1742117488421,22.85062159,134.55,134.5,7.4346]
[1742117488606,20.0,134.52,134.5,7.4346]
[1742117488910,0.063,134.51,134.49,7.4352]
[1742117489114,0.063,134.51,134.48,7.4359]
[1742117489703,0.063,134.51,134.48,22.85432159]
[1742117491896,0.063,134.51,134.47,22.88472159]
[1742117493009,0.063,134.51,134.48,15.41842159]
[1742117493911,0.063,134.51,134.47,22.88472159]
[1742117496901,15.41842159,134.5,134.47,0.03]
[1742117497103,15.41842159,134.48,134.47,0.03]
[1742117497314,34.06807045,134.48,134.47,0.03]
[1742117497513,18.64964886,134.48,134.47,0.03]
[1742117497715,54.06807045,134.48,134.47,0.03]
[1742117498937,38.64964886,134.48,134.47,0.03]
[1742117500330,18.64964886,134.48,134.47,0.03]
[1742117500538,38.64964886,134.48,134.47,0.03]
[1742117501423,20.0,134.48,134.47,0.03]
[1742117502322,34.13107045,134.51,134.47,0.03]
[1742117502520,0.063,134.51,134.48,15.41842159]
[1742117502823,0.063,134.51,134.49,7.4354]
[1742117503324,34.13107045,134.51,134.47,0.03]
[1742117504516,34.13107045,134.51,134.47,7.4664]
[1742117504921,34.13107045,134.51,134.47,0.03]
[1742117506304,18.71264886,134.51,134.47,15.44842159]
[1742117507220,18.71264886,134.51,134.48,7.436]
[1742117508223,0.063,134.51,134.48,7.436]
[1742117508418,20.0,134.5,134.48,22.85442159]
[1742117510520,0.063,134.51,134.49,15.41842159]
[1742117510708,20.063,134.51,134.5,15.41842159]
[1742117511425,0.063,134.51,134.5,22.85332159]
[1742117511839,0.0001,134.51,134.5,22.99548316]
[1742117512137,0.0001,134.51,134.5,24.51838316]
[1742117513618,0.0001,134.51,134.5,22.85332159]
[1742117514627,0.0001,134.51,134.5,15.41842159]
[1742117515929,0.0001,134.51,134.5,22.85332159]
[1742117518332,0.0001,134.51,134.5,22.99548316]
[1742117523347,0.0001,134.51,134.5,7.4349]
[1742117523528,0.0001,134.51,134.49,22.85372159]
[1742117524030,0.0001,134.51,134.48,22.85422159]
[1742117524233,0.0001,134.51,134.47,15.44842159]
[1742117524423,15.41852159,134.51,134.47,0.03]
[1742117525020,22.85312159,134.51,134.47,0.03]
[1742117526341,31.44435624,134.51,134.47,0.03]
[1742117527035,24.00975624,134.51,134.47,0.03]
[1742117527233,0.0001,134.51,134.47,24.03965624]
[1742117527612,24.00975624,134.51,134.47,0.03]
[1742117527818,0.0001,134.51,134.47,24.03965624]
[1742117528738,50.0938051,134.51,134.47,0.03]
[1742117528943,24.00965624,134.5,134.47,0.03]
[1742117530051,31.44455624,134.5,134.47,0.03]
[1742117530341,50.0940051,134.51,134.47,0.03]
[1742117531115,26.08434886,134.51,134.47,0.03]
[1742117531322,50.0940051,134.51,134.47,0.03]
[1742117532342,24.00965624,134.5,134.47,0.03]
[1742117532542,24.00965624,134.49,134.47,0.03]
[1742117532841,24.00965624,134.48,134.47,0.03]
[1742117533545,42.6593051,134.48,134.47,0.03]
[1742117533719,44.3096051,134.48,134.47,0.03]
[1742117533926,44.59392824,134.48,134.47,0.03]
[1742117534543,52.02992824,134.48,134.47,0.03]
[1742117535240,76.03958448,134.48,134.47,0.03]
[1742117535435,18.64964886,134.43,134.37,31.45155624]
[1742117535740,26.66,134.44,134.4,24.00965624]
[1742117535941,26.66,134.44,134.41,24.00965624]
[1742117536125,20.0,134.44,134.41,24.00965624]
[1742117536320,30.20845624,134.47,134.42,24.00965624]
[1742117536542,18.64964886,134.46,134.43,7.4388]
[1742117537145,6.1988,134.47,134.43,31.44845624]
[1742117537337,20.0,134.45,134.43,31.44845624]
[1742117537758,6.66,134.48,134.44,24.00965624]
[1742117537956,42.6593051,134.49,134.44,24.00965624]
[1742117538861,42.6593051,134.49,134.45,7.4377]
[1742117541444,24.00965624,134.49,134.45,7.4377]
[1742117541636,42.94362824,134.46,134.38,18.603]
[1742117541841,24.00965624,134.41,134.37,7.4421]
[1742117542234,24.00965624,134.41,134.36,31.45205624]
[1742117543648,24.00965624,134.41,134.35,6.3156]
[1742117543649,24.00965624,134.4,134.35,31.48275624]
[1742117544036,42.6593051,134.41,134.36,24.00965624]
[1742117544942,30.70965624,134.4,134.35,7.4731]
[1742117545257,6.7,134.4,134.35,31.48275624]
[1742117545752,30.70965624,134.4,134.35,0.03]
[1742117545930,30.70965624,134.4,134.35,24.03965624]
[1742117546442,30.70965624,134.4,134.36,0.03]
[1742117547428,24.00965624,134.39,134.36,0.03]
[1742117547634,30.70965624,134.4,134.36,0.03]
[1742117549640,42.6593051,134.39,134.36,0.03]
[1742117549930,24.00965624,134.37,134.36,0.03]
[1742117551449,49.1338051,134.39,134.36,0.03]
[1742117555238,24.00965624,134.38,134.36,0.03]
[1742117556062,42.6593051,134.37,134.36,0.03]
[1742117556851,42.94362824,134.37,134.36,0.03]
[1742117557663,50.38572824,134.37,134.36,0.03]
[1742117562347,75.25608448,134.34,134.33,0.0001]
[1742117562552,38.64964886,134.31,134.3,0.03]
[1742117562745,62.94362824,134.31,134.3,0.03]
[1742117563668,70.38902824,134.31,134.3,0.03]
[1742117564664,62.94362824,134.31,134.3,0.03]
[1742117565568,70.38902824,134.31,134.3,0.03]
[1742117568444,62.94362824,134.31,134.3,0.03]
[1742117572285,63.00662824,134.31,134.3,0.03]
[1742117574368,70.45202824,134.31,134.3,0.03]
[1742117574771,18.933972,134.26,134.22,0.03]
[1742117574975,24.00965624,134.24,134.22,0.03]
[1742117576693,18.64964886,134.24,134.22,0.03]
[1742117580272,42.6593051,134.24,134.22,0.03]
[1742117580585,24.00965624,134.24,134.22,0.03]
[1742117581480,42.6593051,134.23,134.22,0.03]
[1742117582389,18.64964886,134.23,134.22,0.03]
[1742117583669,42.6593051,134.23,134.22,0.03]
[1742117584976,18.64964886,134.23,134.22,0.03]
[1742117585775,42.6593051,134.23,134.22,0.03]
[1742117585967,50.1091051,134.23,134.22,0.03]
[1742117588099,50.39342824,134.23,134.22,0.03]
[1742117589298,82.29888448,134.23,134.22,0.03]
[1742117589479,74.40368448,134.22,134.21,0.03]
[1742117589671,81.06368448,134.22,134.21,0.03]
[1742117590397,81.06368448,134.22,134.16,0.03]
[1742117590398,18.933972,134.18,134.16,0.03]
[1742117590574,20.0,134.1,134.08,0.03]
[1742117590771,20.0,134.09,134.08,0.03]
[1742117592188,70.40122824,134.09,134.08,0.03]
[1742117592391,62.6593051,134.09,134.08,0.03]
[1742117592888,62.94362824,134.09,134.08,0.03]
[1742117593390,62.94362824,134.09,133.98,7.4638]
[1742117593391,20.0,134.01,133.98,7.4638]
[1742117593581,20.0,134.01,133.99,24.00965624]
[1742117594183,24.00965624,134.05,133.99,24.00965624]
[1742117594371,24.00965624,134.07,134.02,24.00965624]
[1742117594777,24.00965624,134.07,134.01,24.00965624]
[1742117595284,24.00965624,134.07,134.02,24.00965624]
[1742117595780,24.00965624,134.07,134.03,7.461]
[1742117595968,20.0,134.05,134.02,24.00965624]
[1742117596173,24.00965624,134.07,134.01,42.07546022]
[1742117596490,24.00965624,134.07,134.02,24.00965624]
[1742117596692,18.64964886,134.12,134.05,24.00965624]
[1742117596898,24.00965624,134.11,134.06,24.00965624]
[1742117597099,24.00965624,134.11,134.05,30.11345624]
[1742117597286,20.0,134.08,134.05,30.11345624]
[1742117597592,20.0,134.08,134.05,13.5632]
[1742117597983,20.0,134.08,134.05,7.4594]
[1742117598379,20.0,134.08,134.04,7.4603]
[1742117598705,18.64964886,134.06,134.03,7.4608]
[1742117599002,42.6593051,134.06,134.03,7.4608]
[1742117599295,44.00965624,134.09,134.04,24.00965624]
[1742117599486,18.64964886,134.08,134.04,24.00965624]
[1742117599791,0.14216157,134.11,134.03,7.4608]
[1742117599792,20.0,134.07,134.05,31.46955624]
[1742117600676,24.00965624,134.1,134.05,31.46955624]
[1742117601699,24.00965624,134.1,134.05,50.11925624]
[1742117601895,30.70965624,134.11,134.06,24.00965624]
[1742117602076,18.64964886,134.13,134.09,24.00965624]
[1742117602689,30.70965624,134.15,134.09,24.00965624]
[1742117602894,18.64964886,134.14,134.1,24.00965624]
[1742117603194,6.7,134.15,134.11,24.00965624]
[1742117603393,18.64964886,134.15,134.11,24.00965624]
[1742117603582,18.64964886,134.16,134.12,24.00965624]
[1742117603781,18.64964886,134.16,134.1,6.1038]
[1742117603782,18.64964886,134.16,134.13,7.4554]
[1742117604097,42.6593051,134.16,134.13,7.4554]
[1742117604877,197.26,134.17,134.13,7.4554]
[1742117605075,197.26,134.17,134.13,31.46505624]
[1742117605279,221.26965624,134.17,134.13,7.4554]
[1742117605492,221.26965624,134.17,134.12,7.4558]
[1742117606174,18.64964886,134.16,134.12,7.4558]
[1742117606374,42.6593051,134.16,134.11,31.46605624]
[1742117606581,24.00965624,134.15,134.1,37.57025624]
[1742117606782,42.6593051,134.12,134.07,7.4587]
[1742117606982,42.6593051,134.12,134.07,31.46835624]
[1742117607302,18.64964886,134.12,134.08,24.00965624]
[1742117607707,42.6593051,134.14,134.08,24.00965624]
[1742117608011,18.64964886,134.12,134.08,24.00965624]
[1742117608186,18.64964886,134.12,134.07,31.46835624]
[1742117608709,18.71264886,134.12,134.07,31.46835624]
[1742117609078,18.71264886,134.12,134.08,24.00965624]
[1742117609281,0.063,134.12,134.08,24.00965624]
[1742117609500,0.063,134.12,134.09,24.00965624]
[1742117609706,0.063,134.12,134.1,23.50965624]
[1742117610207,0.063,134.12,134.11,24.00965624]
[1742117610606,0.063,134.12,134.11,31.46615624]
[1742117610794,20.063,134.12,134.09,7.4573]
[1742117611000,20.063,134.12,134.07,24.00965624]
[1742117611205,44.07265624,134.12,134.07,31.46835624]
[1742117611689,20.063,134.12,134.07,31.46835624]
[1742117611890,44.07265624,134.12,134.07,31.46835624]
[1742117612384,20.063,134.12,134.08,24.00965624]
[1742117614310,0.063,134.12,134.11,31.46615624]
[1742117616088,0.0001,134.12,134.11,39.36485624]
[1742117617494,0.0001,134.12,134.11,351.36485624]
[1742117618391,0.0001,134.12,134.11,365.93980798]
[1742117619407,6.68,134.22,134.12,0.28432314]
[1742117619709,6.68,134.22,134.19,38.58460798]
[1742117619904,18.64964886,134.23,134.19,38.58460798]
[1742117620294,57.23425684,134.23,134.18,46.03710798]
[1742117620704,38.58460798,134.22,134.17,46.03760798]
[1742117621013,38.58460798,134.22,134.13,106.7972]
[1742117621014,38.58460798,134.2,134.14,46.03940798]
[1742117621507,57.23425684,134.21,134.16,38.58460798]
[1742117621812,18.64964886,134.2,134.16,38.58460798]
[1742117622005,38.58460798,134.21,134.16,46.03830798]
[1742117622211,18.64964886,134.21,134.17,38.58460798]
[1742117622398,38.58460798,134.23,134.18,38.58460798]
[1742117622591,18.64964886,134.22,134.18,38.58460798]
[1742117623516,18.64964886,134.22,134.18,7.4526]
[1742117625320,38.58460798,134.23,134.18,46.03720798]
[1742117625500,18.64964886,134.23,134.18,46.03720798]
[1742117625814,64.68415684,134.23,134.18,46.03720798]
[1742117626512,38.58460798,134.22,134.17,38.58460798]
[1742117626812,38.58460798,134.21,134.16,46.03830798]
[1742117627386,38.58460798,134.2,134.15,46.03870798]
[1742117627591,46.03660798,134.2,134.15,46.03870798]
[1742117628692,38.58460798,134.2,134.15,46.03870798]
[1742117628996,18.64964886,134.2,134.16,38.58460798]
[1742117629393,57.23425684,134.2,134.15,46.03870798]
[1742117630514,18.64964886,134.2,134.16,38.58460798]
[1742117630726,46.03510798,134.22,134.17,38.58460798]
[1742117631016,18.64964886,134.21,134.17,38.58460798]
[1742117631714,18.64964886,134.21,134.17,46.03730798]
[1742117634628,18.64964886,134.19,134.15,38.58460798]
[1742117634913,38.58460798,134.18,134.12,38.61460798]
[1742117635299,38.58460798,134.17,134.12,38.61460798]
[1742117636519,38.58460798,134.18,134.12,38.61460798]
[1742117636821,38.58460798,134.18,134.13,38.58460798]
[1742117636997,57.23425684,134.19,134.14,38.58460798]
[1742117637414,38.58460798,134.18,134.12,0.03]
[1742117637593,38.58460798,134.18,134.12,38.61460798]
[1742117637802,38.58460798,134.17,134.12,38.61460798]
[1742117638822,46.03800798,134.17,134.12,38.61460798]
[1742117639315,38.58460798,134.16,134.12,0.03]
[1742117640321,31.58485082,134.17,134.12,24.16145082]
[1742117641804,7.4534,134.17,134.13,24.13145082]
[1742117642005,26.10304886,134.17,134.13,24.13145082]
[1742117642605,7.4534,134.17,134.12,24.16145082]
[1742117642806,24.13145082,134.16,134.12,0.03]
[1742117643115,7.4548,134.14,134.12,0.03]
[1742117644227,31.58625082,134.14,134.12,0.03]
[1742117645021,24.13145082,134.13,134.12,0.03]
[1742117645217,31.58685082,134.13,134.12,0.03]
[1742117646925,50.23649968,134.13,134.12,0.03]
[1742117647508,50.52082282,134.13,134.12,0.03]
[1742117647913,18.64964886,134.12,134.06,0.03]
[1742117648115,24.13145082,134.09,134.06,0.03]
[1742117648316,24.13145082,134.1,134.06,0.03]
[1742117648523,24.13145082,134.11,134.06,24.16145082]
[1742117649028,20.0,134.11,134.07,24.13145082]
[1742117649724,44.13145082,134.11,134.06,31.62075082]
[1742117650124,24.13145082,134.12,134.06,7.4893]
[1742117650319,24.13145082,134.11,134.06,7.4893]
[1742117650517,24.13145082,134.11,134.06,31.62075082]
[1742117653435,24.13145082,134.11,134.06,7.4893]
[1742117653650,24.13145082,134.1,134.06,7.4893]
[1742117654207,24.13145082,134.11,134.06,31.62075082]
[1742117654427,24.13145082,134.12,134.07,24.13145082]
[1742117654839,24.13145082,134.11,134.06,31.62075082]
[1742117656539,24.13145082,134.11,134.06,50.26905082]
[1742117656730,24.13145082,134.12,134.07,24.13145082]
[1742117656936,24.13145082,134.13,134.08,24.13145082]
[1742117658138,24.13145082,134.13,134.09,7.4576]
[1742117660145,18.64964886,134.15,134.1,24.13145082]
[1742117660325,42.78109968,134.15,134.1,24.13145082]
[1742117660726,30.75145082,134.16,134.11,24.13145082]
[1742117661548,30.75145082,134.16,134.12,7.456]
[1742117661849,0.063,134.17,134.15,24.13145082]
[1742117662043,0.063,134.17,134.15,25.72415082]
[1742117663822,0.063,134.17,134.16,7.4537]
[1742117667344,0.063,134.17,134.16,31.58515082]
[1742117668433,0.063,134.17,134.16,7.4537]
[1742117671428,0.063,134.17,134.16,31.58515082]
[1742117674857,0.063,134.17,134.16,7.4537]
[1742117675059,0.063,134.17,134.11,26.463]
[1742117675228,24.19445082,134.17,134.13,24.13145082]
[1742117675426,0.063,134.17,134.13,24.13145082]
[1742117676137,0.063,134.17,134.14,24.13145082]
[1742117677048,0.063,134.17,134.15,7.4543]
[1742117677650,0.063,134.17,134.14,31.58615082]
[1742117678030,0.063,134.17,134.15,24.13145082]
[1742117678337,0.063,134.17,134.16,24.13145082]
[1742117679231,0.063,134.17,134.16,31.58515082]
[1742117682641,0.063,134.17,134.16,55.71660164]
[1742117686968,0.063,134.23,134.16,74.35100164]
[1742117687144,0.063,134.23,134.16,80.96550164]
[1742117687345,0.063,134.23,134.19,24.13145082]
[1742117687546,0.063,134.23,134.19,31.58305082]
[1742117688266,0.063,134.23,134.19,22.87893479]
[1742117689336,15.49033479,134.23,134.18,22.87963479]
[1742117689553,15.42733479,134.21,134.16,15.42733479]
[1742117689756,15.42733479,134.21,134.15,16.92923479]
[1742117689957,15.42733479,134.21,134.16,15.42733479]
[1742117690265,15.42733479,134.22,134.17,15.42733479]
[1742117690561,7.451,134.21,134.17,15.42733479]
[1742117690860,7.451,134.21,134.17,22.88043479]
[1742117691056,7.451,134.21,134.17,15.42733479]
[1742117691259,22.87833479,134.21,134.16,15.42733479]
[1742117691642,18.71264886,134.23,134.18,15.42733479]
[1742117691847,34.13998365,134.23,134.18,15.42733479]
[1742117692163,34.13998365,134.23,134.17,15.42733479]
[1742117692773,15.42733479,134.22,134.17,15.42733479]
[1742117693573,20.0,134.17,134.12,0.03]
[1742117693872,35.42733479,134.17,134.12,0.03]
[1742117694369,35.42733479,134.17,134.16,0.03]
[1742117694755,42.88053479,134.17,134.16,0.03]
[1742117695855,61.53018365,134.17,134.16,0.03]
[1742117696254,70.23941262,134.17,134.16,0.03]
[1742117702466,20.0,134.13,134.12,0.03]
[1742117702652,70.24161262,134.13,134.12,0.03]
[1742117704247,70.52593576,134.13,134.12,0.03]
[1742117705447,62.78621262,134.13,134.12,0.03]
[1742117708161,15.02032314,134.15,134.12,0.03]
[1742117708162,24.13656376,134.14,134.12,0.03]
[1742117708363,18.64964886,134.14,134.12,0.03]
[1742117708688,42.78621262,134.14,134.12,0.03]
[1742117709566,7.5164,134.17,134.12,24.16656376]
[1742117709567,24.19956376,134.17,134.12,24.16656376]
[1742117709953,18.71264886,134.17,134.13,24.13656376]
[1742117710162,42.84921262,134.17,134.12,24.16656376]
[1742117711477,24.13656376,134.14,134.12,0.03]
[1742117711852,24.13656376,134.15,134.12,0.03]
[1742117713376,24.19956376,134.17,134.12,24.16656376]
[1742117713576,24.19956376,134.17,134.13,24.13656376]
[1742117713577,18.71264886,134.17,134.13,24.13656376]
[1742117714584,0.063,134.17,134.15,24.13656376]
[1742117714886,0.063,134.17,134.16,24.13656376]
[1742117715093,0.063,134.17,134.15,24.13656376]
[1742117715495,0.063,134.17,134.16,7.4537]
[1742117717981,0.063,134.17,134.16,31.59026376]
[1742117718596,0.063,134.17,134.16,7.4537]
[1742117718785,0.063,134.17,134.16,7.4837]
[1742117719166,0.063,134.17,134.16,31.62026376]
[1742117724989,0.063,134.21,134.16,50.25466376]
[1742117725296,0.063,134.23,134.2,24.13656376]
[1742117725481,0.063,134.23,134.22,24.13656376]
[1742117726495,0.063,134.23,134.17,7.4532]
[1742117726496,24.19956376,134.23,134.17,7.4532]
[1742117726677,24.13656376,134.22,134.17,7.4532]
[1742117726878,24.13656376,134.22,134.16,61.43546376]
[1742117726879,24.13656376,134.22,134.16,24.16656376]
[1742117727779,24.13656376,134.22,134.17,24.13656376]
[1742117729296,42.78621262,134.22,134.17,24.13656376]
[1742117729505,24.13656376,134.21,134.16,24.16656376]
[1742117731587,42.84921262,134.22,134.17,24.13656376]
[1742117733303,50.29971262,134.22,134.17,24.13656376]
[1742117735002,24.13656376,134.21,134.16,24.16656376]
[1742117735999,31.58776376,134.21,134.16,24.16656376]
[1742117737107,7.4512,134.21,134.17,24.13656376]
[1742117738409,7.4512,134.21,134.17,15.43300193]
[1742117740406,22.88510193,134.19,134.16,0.03]
[1742117740601,15.43300193,134.18,134.16,0.03]
[1742117741806,22.88590193,134.18,134.16,0.03]
[1742117743808,41.53585079,134.17,134.16,0.03]
[1742117744391,48.13585079,134.17,134.16,0.03]
[1742117745013,48.42017393,134.17,134.16,0.03]
[1742117745515,48.13585079,134.17,134.16,0.03]
[1742117746019,40.68265079,134.17,134.16,0.03]
[1742117746316,18.64964886,134.17,134.16,0.03]
[1742117746607,15.43300193,134.18,134.16,0.03]
[1742117746816,18.64964886,134.18,134.16,0.03]
[1742117747811,15.43300193,134.19,134.16,0.03]
[1742117748010,18.64964886,134.2,134.16,22.91660193]
[1742117748314,42.76815304,134.2,134.16,7.4836]
[1742117748817,42.76815304,134.2,134.16,0.03]
[1742117749016,42.76815304,134.2,134.16,7.4837]
[1742117749508,42.76815304,134.2,134.16,0.03]